bitfinex-derivatives/quotes_ETHF0:USTF0_20260208
["timestamp","ask_amount","ask_price","bid_price","bid_amount"]
[1770526492171,10.45072879,2080.1,2079.3,10.41484356]
[1770526500677,17.64876612,2080.3,2079.3,10.41484356]
[1770526500876,10.45072879,2080.6,2079.9,10.4108043]
[1770526501375,11.37571475,2080.6,2079.9,10.4108043]
[1770526502376,10.45526615,2080.7,2080.1,10.4108043]
[1770526512993,0.00453736,2080.7,2080.1,10.4108043]
[1770526513189,10.0260134,2081.0,2080.3,10.06553328]
[1770526514188,10.03196622,2081.0,2080.3,10.06553328]
[1770526514688,7.19803733,2081.4,2080.5,10.06553328]
[1770526514689,10.0260134,2081.4,2080.5,10.06553328]
[1770526515789,10.03103331,2081.4,2080.5,10.06553328]
[1770526540809,9.04986373,2081.5,2080.7,2.87934915]
[1770526541015,9.04986373,2081.5,2080.8,9.49977409]
[1770526541806,9.05596206,2081.5,2080.8,9.50534]
[1770526555826,16.25399939,2081.5,2080.8,0.00556591]
[1770526556030,9.98430646,2081.3,2080.6,9.49977409]
[1770526557029,9.98430646,2081.3,2080.6,9.50563714]
[1770526564137,7.19803733,2081.4,2080.6,9.50563714]
[1770526564138,9.98430646,2081.4,2080.6,9.50563714]
[1770526564340,9.98430646,2081.4,2080.7,9.49977409]
[1770526570334,10.16847103,2081.3,2080.7,9.49977409]
[1770526570741,10.16847103,2081.4,2080.7,9.49977409]
[1770526571337,10.17456936,2081.5,2080.7,9.49977409]
[1770526575039,10.17456936,2081.5,2080.9,2.87934915]
[1770526575246,10.17456936,2081.5,2081.0,9.68368115]
[1770526579953,10.16900345,2081.5,2081.0,10.60793482]
[1770526580150,47.6829464,2087.1,2081.5,9.68368115]
[1770526580151,20.55603806,2082.4,2081.5,9.68368115]
[1770526580453,10.12951897,2082.4,2081.5,9.68368115]
[1770526581251,10.1354777,2082.4,2081.5,9.68368115]
[1770526581653,10.1354777,2082.4,2081.5,9.98442054]
[1770526581856,10.12951897,2082.1,2081.5,9.68368115]
[1770526582655,0.00595873,2082.4,2081.3,9.68368115]
[1770526582656,10.12951897,2081.9,2081.3,9.68368115]
[1770526582859,10.12951897,2081.9,2081.2,9.68368115]
[1770526590656,10.12951897,2082.1,2081.4,9.68368115]
[1770526598977,10.12951897,2082.1,2081.3,0.92425367]
[1770526598978,10.12951897,2082.1,2081.6,9.51443908]
[1770526599271,9.55667291,2082.3,2081.6,9.51443908]
[1770526600972,10.48092658,2082.3,2081.6,9.51443908]
[1770526601273,9.55667291,2082.3,2081.6,9.51443908]
[1770526605276,0.24624873,2082.4,2081.4,9.51443908]
[1770526605277,9.55667291,2082.1,2081.4,9.51443908]
[1770526614884,7.20399606,2082.4,2081.6,10.43869275]
[1770526615082,0.00595873,2082.4,2081.6,10.43869275]
[1770526615283,0.00595873,2082.4,2081.6,9.51443908]
[1770526616387,9.55667291,2082.3,2081.6,9.51443908]
[1770526622591,9.55667291,2081.9,2081.3,12.39378823]
[1770526622791,9.55667291,2081.9,2081.3,9.51443908]
[1770526624491,9.55667291,2081.9,2081.1,9.51443908]
[1770526625589,9.55667291,2081.7,2081.1,9.51443908]
[1770526626585,9.55667291,2081.7,2080.9,9.97672807]
[1770526627593,9.55667291,2081.7,2080.9,9.0524744]
[1770526628197,9.10507231,2081.5,2080.9,9.0524744]
[1770526628895,9.10507231,2081.5,2080.7,9.0524744]
[1770526629196,0.24035,2081.9,2080.7,9.0524744]
[1770526629197,9.10507231,2081.3,2080.7,9.0524744]
[1770526629794,9.10507231,2081.3,2080.6,9.05833745]
[1770526630495,9.10507231,2081.1,2080.6,0.00586305]
[1770526630690,9.10507231,2081.1,2080.5,9.0524744]
[1770526631097,9.10507231,2081.1,2080.2,9.0524744]
[1770526631406,9.10507231,2080.9,2080.2,9.0524744]
[1770526631695,9.11007402,2080.9,2080.2,9.05657451]
[1770526631901,0.00500171,2080.9,2080.4,9.0524744]
[1770526632401,9.10507231,2081.4,2080.8,9.0524744]
[1770526632594,9.52190583,2081.6,2080.8,9.0524744]
[1770526633294,9.52625126,2081.6,2080.8,9.0524744]
[1770526634894,0.00434543,2081.6,2081.0,9.2290534]
[1770526635302,0.00434543,2081.6,2081.2,9.2290534]
[1770526636998,9.52190583,2081.8,2081.2,9.2290534]
[1770526638202,9.52606667,2081.8,2081.2,9.2290534]
[1770526645019,0.00416084,2081.8,2081.2,9.2290534]
[1770526646214,9.52606667,2081.8,2081.2,9.2290534]
[1770526652827,9.52190583,2081.7,2081.2,9.2290534]
[1770526658235,0.00416084,2081.8,2081.2,9.2290534]
[1770526658535,8.82465793,2081.8,2081.2,9.2290534]
[1770526661236,14.57178173,2081.8,2081.2,9.2290534]
[1770526661735,8.82049709,2081.7,2081.2,9.2290534]
[1770526664238,5.76315392,2082.0,2081.4,9.30644944]
[1770526664532,7.19803733,2082.4,2081.4,9.30644944]
[1770526664729,7.19803733,2082.4,2081.5,9.30644944]
[1770526664730,8.82049709,2082.4,2081.5,9.30644944]
[1770526664927,5.75128464,2082.3,2081.5,9.30644944]
[1770526665329,5.75654316,2082.3,2081.5,9.30644944]
[1770526665535,14.57704025,2082.3,2081.5,9.30644944]
[1770526666939,8.82049709,2082.2,2081.5,9.30644944]
[1770526667147,8.82049709,2082.0,2081.3,9.30644944]
[1770526671040,5.75128464,2081.9,2081.3,9.30644944]
[1770526671231,8.82049709,2081.8,2081.3,9.30644944]
[1770526672240,5.75128464,2081.7,2081.3,9.30644944]
[1770526672440,8.82049709,2081.6,2081.3,9.30644944]
[1770526672739,14.57178173,2081.7,2081.3,9.30644944]
[1770526673236,5.75128464,2081.7,2081.3,9.30644944]
[1770526673744,14.57178173,2081.7,2081.3,9.30644944]
[1770526674742,5.75128464,2081.7,2081.3,9.30644944]
[1770526680045,14.57178173,2081.7,2081.3,9.30644944]
[1770526681242,8.82049709,2081.6,2081.1,9.30644944]
[1770526681643,0.92403809,2082.0,2081.1,9.30644944]
[1770526681644,8.82049709,2081.4,2081.1,9.30644944]
[1770526682148,14.57178173,2081.4,2081.1,9.30644944]
[1770526682444,5.75128464,2081.4,2081.1,9.30644944]
[1770526683248,8.82049709,2081.9,2081.1,9.30644944]
[1770526690955,8.82049709,2081.9,2081.2,9.368974]
[1770526691155,8.82049709,2081.9,2081.3,9.368974]
[1770526694261,8.91376754,2082.2,2081.3,9.368974]
[1770526699467,8.91376754,2082.2,2081.3,10.29270313]
[1770526700566,8.91376754,2082.2,2081.3,10.46070313]
[1770526709471,8.91376754,2082.2,2081.5,8.79110287]
[1770526709770,8.91376754,2082.2,2081.5,9.714832]
[1770526711672,8.91376754,2082.2,2081.3,3.97107828]
[1770526711875,8.91376754,2082.2,2081.4,8.79110287]
[1770526713979,8.91376754,2082.0,2081.3,2.87934915]
[1770526714171,8.91376754,2082.0,2081.2,8.79110287]
[1770526720585,7.19803733,2082.2,2081.2,8.79110287]
[1770526720890,9.73392535,2082.7,2082.1,8.59734592]
[1770526721189,9.73392535,2082.7,2082.2,8.59734592]
[1770526721788,9.73736001,2082.7,2082.2,8.60153638]
[1770526722188,9.73736001,2082.7,2082.2,0.00419046]
[1770526722396,9.73392535,2082.4,2081.8,11.61964411]
[1770526722594,9.73392535,2082.4,2081.8,8.74029496]
[1770526723493,9.73392535,2082.4,2081.8,8.7456128]
[1770526723795,9.73392535,2082.4,2081.8,9.66934193]
[1770526725697,0.92372913,2083.2,2081.8,9.66934193]
[1770526725698,9.73392535,2084.5,2082.4,8.84206881]
[1770526725905,9.73392535,2084.5,2082.3,7.83586164]
[1770526725906,9.73392535,2084.2,2083.1,9.76579794]
[1770526726192,9.73392535,2083.2,2082.5,6.1102507]
[1770526726391,9.73392535,2083.2,2082.4,8.84206881]
[1770526726592,9.26904758,2083.2,2082.7,9.76579794]
[1770526736499,9.26904758,2083.2,2082.7,0.92372913]
[1770526736699,8.80060848,2083.2,2082.7,0.92372913]
[1770526737803,8.80060848,2083.2,2082.7,9.76579794]
[1770526738398,8.80060848,2083.2,2082.8,3.894]
[1770526739198,9.73392535,2083.9,2083.1,9.76579794]
[1770526739403,9.73392535,2083.9,2083.1,0.92372913]
[1770526740203,9.73954731,2083.9,2083.1,0.92372913]
[1770526741004,9.73954731,2083.9,2083.0,8.84206881]
[1770526741205,9.73954731,2083.9,2082.9,4.81772913]
[1770526741206,9.73954731,2083.9,2083.1,9.76579794]
[1770526742610,9.73954731,2083.9,2083.3,9.76579794]
[1770526742807,9.73954731,2083.9,2083.3,9.76936688]
[1770526743706,9.73954731,2083.9,2083.3,0.92729807]
[1770526746209,10.65127474,2084.6,2083.6,9.8585635]
[1770526746414,10.65127474,2084.3,2083.4,0.92372913]
[1770526746708,10.65127474,2084.3,2083.4,10.78229263]
[1770526747407,10.65659379,2084.3,2083.4,10.78229263]
[1770526748215,10.65659379,2084.3,2083.3,9.86213244]
[1770526749414,10.65659379,2084.3,2083.4,10.78229263]
[1770526751516,10.65659379,2084.3,2083.3,0.00356894]
[1770526751710,10.65127474,2083.9,2082.8,10.78229263]
[1770526752612,10.65127474,2083.9,2082.8,10.78637227]
[1770526753717,9.80099975,2083.7,2082.8,0.92780877]
[1770526754117,9.80099975,2083.7,2082.8,0.00407964]
[1770526755313,9.80099975,2083.7,2082.8,0.92780877]
[1770526757314,9.80099975,2083.7,2082.8,0.00407964]
[1770526757522,9.80099975,2083.5,2082.5,10.38198533]
[1770526757720,9.80099975,2083.3,2082.5,10.38198533]
[1770526758215,0.92372913,2083.2,2082.3,10.38198533]
[1770526758419,9.80099975,2083.1,2082.3,10.38198533]
[1770526758621,9.80099975,2083.1,2082.3,10.38796158]
[1770526761220,9.80099975,2083.1,2082.3,0.00597625]
[1770526761420,9.80099975,2083.1,2082.0,10.38198533]
[1770526761826,16.16352334,2083.8,2082.0,10.38198533]
[1770526761827,10.40629611,2084.8,2083.0,1.8460085]
[1770526762028,15.37449927,2084.9,2084.3,0.01004835]
[1770526762235,10.39624023,2085.0,2084.3,0.01004835]
[1770526762528,22.78562007,2084.9,2084.5,0.01004835]
[1770526762925,12.3843519,2084.8,2084.5,0.01496028]
[1770526763426,4.57715949,2084.8,2084.5,0.01496028]
[1770526764334,11.64444305,2086.2,2084.7,2.83841924]
[1770526764527,11.64444305,2085.6,2084.7,8.50358482]
[1770526764729,11.64444305,2085.6,2084.7,0.00261967]
[1770526765032,11.64444305,2085.6,2084.7,5.66560349]
[1770526765233,11.64940926,2085.6,2084.7,0.00261967]
[1770526766033,11.64444305,2085.4,2084.7,0.00261967]
[1770526766825,0.00496621,2085.6,2084.7,0.00261967]
[1770526767030,11.68465813,2087.2,2085.6,1.38143939]
[1770526767236,11.72791741,2087.1,2085.8,2.80383159]
[1770526767732,11.72791741,2087.1,2085.9,8.4552566]
[1770526767932,11.73238846,2087.1,2085.8,2.80383159]
[1770526768132,11.73238846,2087.1,2085.7,2.80383159]
[1770526768630,11.73238846,2087.1,2085.5,2.80383159]
[1770526768832,11.73238846,2087.1,2085.4,2.80383159]
[1770526769533,11.73238846,2087.1,2085.5,0.49298824]
[1770526771931,0.08347436,2087.0,2085.5,0.49298824]
[1770526772132,11.57273285,2086.9,2085.2,0.1434204]
[1770526772529,11.57273285,2086.7,2085.2,0.1434204]
[1770526772930,11.57273285,2086.5,2085.2,0.1434204]
[1770526773431,11.57273285,2086.3,2085.2,0.1434204]
[1770526775436,11.64444305,2086.1,2085.2,0.1434204]
[1770526775827,11.63116059,2085.9,2085.2,0.1434204]
[1770526776234,11.71463495,2085.9,2085.2,0.1434204]
[1770526776730,11.71463495,2085.9,2084.7,0.24002]
[1770526777538,11.71463495,2085.9,2084.6,2.80383159]
[1770526780239,11.63116059,2085.9,2084.6,2.80383159]
[1770526781237,11.63116059,2088.4,2085.8,1.38143939]
[1770526781435,11.63116059,2088.3,2087.0,2.77804762]
[1770526781636,1.14777215,2088.3,2087.3,10.1541246]
[1770526781932,1.38143939,2090.1,2087.3,10.1541246]
[1770526781933,10.91324426,2089.6,2087.3,10.1541246]
[1770526782134,10.91324426,2089.4,2087.3,10.1541246]
[1770526782335,10.91816158,2089.4,2087.3,10.15982801]
[1770526783941,10.91816158,2089.4,2087.6,11.44458755]
[1770526787250,10.91324426,2088.9,2087.4,11.44458755]
[1770526787547,10.91324426,2088.9,2087.3,0.00570341]
[1770526788146,10.91324426,2088.9,2087.3,11.45029096]
[1770526789134,0.08336298,2089.5,2087.8,11.44458755]
[1770526789339,10.91324426,2090.3,2088.3,11.44458755]
[1770526789542,10.91324426,2090.3,2088.1,11.44458755]
[1770526789748,10.91324426,2089.8,2088.1,11.44458755]
[1770526790144,11.15268426,2089.8,2088.1,11.44458755]
[1770526790344,10.91324426,2089.6,2087.9,11.44458755]
[1770526793453,10.91324426,2089.3,2087.9,11.44458755]
[1770526794451,11.15274426,2089.3,2087.9,11.44458755]
[1770526794748,11.15274426,2089.3,2087.6,11.44458755]
[1770526795744,10.91324426,2089.0,2087.6,11.44458755]
[1770526796246,11.15277426,2089.0,2087.6,11.44458755]
[1770526798447,10.91324426,2088.8,2087.6,11.44458755]
[1770526798653,11.15279426,2088.8,2087.6,11.44458755]
[1770526801153,6.18955255,2089.8,2087.4,11.44458755]
[1770526801154,10.91324426,2088.6,2087.4,11.44458755]
[1770526801358,11.15282426,2088.6,2087.4,11.44458755]
[1770526801657,10.91324426,2088.1,2087.3,0.00570341]
[1770526801850,10.91324426,2088.1,2086.7,4.16707144]
[1770526801851,10.91324426,2087.9,2086.6,11.44458755]
[1770526802346,11.15290426,2087.9,2086.6,11.44458755]
[1770526802549,11.15290426,2087.9,2086.7,5.5969796]
[1770526802748,11.15290426,2087.9,2086.8,11.44458755]
[1770526802749,11.15709987,2087.9,2086.8,11.44458755]
[1770526808354,11.15709987,2087.9,2086.8,14.22263517]
[1770526808848,11.15709987,2087.9,2086.8,11.44458755]
[1770526809257,11.15709987,2087.9,2087.0,10.92421533]
[1770526810947,11.15709987,2087.9,2086.9,2.77804762]
[1770526811150,11.15709987,2087.9,2087.0,8.32928088]
[1770526811358,11.15709987,2087.9,2087.1,5.55123326]
[1770526811554,11.31522424,2087.7,2086.9,2.77804762]
[1770526811761,11.31522424,2087.4,2086.7,0.00484977]
[1770526811953,11.31522424,2087.4,2086.4,15.09128677]
[1770526811954,11.55494424,2087.4,2086.4,10.92421533]
[1770526812457,11.31522424,2087.2,2086.4,10.92421533]
[1770526812859,11.31522424,2087.2,2086.4,10.93021549]
[1770526813761,11.31522424,2087.2,2086.4,0.00600016]
[1770526815562,11.55496424,2087.2,2086.4,0.00600016]
[1770526817565,11.45874723,2087.0,2086.0,10.6410322]
[1770526818464,11.45874723,2087.0,2086.0,10.64567465]
[1770526822665,11.45874723,2087.6,2086.3,10.6410322]
[1770526824762,11.45874723,2087.6,2086.6,10.6410322]
[1770526826869,0.23968,2087.7,2086.5,1.37936723]
[1770526826870,0.23968,2087.7,2086.8,10.6410322]
[1770526827063,11.45874723,2086.9,2086.1,8.42807959]
[1770526828363,11.69851723,2086.9,2086.0,0.00464245]
[1770526830161,11.45874723,2086.7,2086.0,0.00464245]
[1770526832366,11.45874723,2085.9,2084.6,8.70113833]
[1770526832670,1.37936723,2086.5,2084.6,8.70113833]
[1770526832671,11.45874723,2085.7,2084.6,8.70113833]
[1770526833367,11.46496472,2085.7,2084.6,8.706864]
[1770526833965,11.70487472,2085.7,2084.6,0.00572567]
[1770526835662,10.50487094,2085.5,2084.6,0.00572567]
[1770526835865,10.74481094,2085.5,2084.6,0.00572567]
[1770526836771,10.74481094,2085.5,2084.6,8.82849558]
[1770526844480,0.23994,2085.5,2084.6,8.82849558]
[1770526844685,10.50487094,2085.6,2084.6,8.82849558]
[1770526849887,10.50487094,2085.6,2084.7,9.19682079]
[1770526850086,10.50487094,2085.6,2084.8,9.19682079]
[1770526850289,10.50487094,2085.6,2084.1,6.93546248]
[1770526850290,10.50487094,2084.7,2083.7,10.47666136]
[1770526850786,10.50487094,2084.7,2083.0,10.47666136]
[1770526851290,10.50487094,2084.7,2083.0,10.48109108]
[1770526851690,10.50487094,2084.7,2083.3,10.47666136]
[1770526856492,10.50487094,2084.2,2083.0,0.00442972]
[1770526856697,10.50487094,2083.8,2083.0,10.48109108]
[1770526860099,10.50487094,2084.1,2083.0,10.48109108]
[1770526860303,10.50487094,2084.1,2083.0,11.86045831]
[1770526862000,10.50487094,2084.1,2083.0,0.00442972]
[1770526862303,10.50487094,2083.8,2082.7,10.47666136]
[1770526863199,10.50487094,2083.8,2082.7,10.48178292]
[1770526865406,0.24013,2083.9,2082.7,10.48178292]
[1770526865908,10.50487094,2084.0,2082.9,10.48564141]
[1770526866299,11.51660427,2083.8,2082.7,10.49076297]
[1770526866704,11.27647427,2083.8,2082.7,10.49076297]
[1770526868303,0.00338594,2084.2,2082.7,10.49076297]
[1770526868508,11.27647427,2084.1,2082.9,10.48564141]
[1770526869704,11.27647427,2084.1,2083.1,10.48564141]
[1770526869904,0.00338594,2084.2,2083.1,10.48564141]
[1770526870905,11.51995021,2084.2,2082.9,10.48564141]
[1770526872404,11.27986021,2084.2,2083.1,10.48564141]
[1770526874711,11.27986021,2084.2,2083.2,11.45156035]
[1770526875906,11.27986021,2084.2,2082.9,2.80818852]
[1770526875907,11.08342373,2083.9,2082.9,2.80818852]
[1770526876103,11.08342373,2083.9,2082.8,11.45156035]
[1770526878305,11.08342373,2083.9,2082.8,14.25974887]
[1770526879098,11.08342373,2083.9,2082.8,11.45156035]
[1770526879303,11.08342373,2083.9,2082.8,14.25974887]
[1770526880410,0.24011,2084.0,2082.4,7.03413698]
[1770526880411,11.32357373,2083.6,2082.4,11.45156035]
[1770526881306,11.32357373,2083.6,2082.4,11.45715318]
[1770526884814,7.12634279,2084.2,2082.0,11.45156035]
[1770526884815,11.08342373,2083.4,2082.0,11.45156035]
[1770526886016,11.08342373,2083.4,2082.0,11.45713578]
[1770526888921,11.08342373,2083.4,2082.1,11.45156035]
[1770526889514,11.08342373,2083.2,2082.1,2.80656035]
[1770526889719,11.32362373,2083.2,2082.0,11.45713578]
[1770526893923,11.08342373,2082.8,2081.4,5.62760166]
[1770526894120,11.08342373,2082.8,2081.5,11.45156035]
[1770526895023,11.08342373,2082.8,2081.5,11.45706072]
[1770526895221,11.08342373,2082.6,2081.5,0.00550037]
[1770526895422,11.08852709,2082.6,2081.5,0.00550037]
[1770526898427,11.08852709,2082.6,2081.5,10.70272891]
[1770526898629,11.63890523,2082.1,2080.8,10.69722854]
[1770526899522,11.63890523,2082.1,2080.8,11.00951076]
[1770526899929,11.63890523,2082.1,2080.8,10.70100682]
[1770526901922,11.87923523,2082.1,2080.8,10.70100682]
[1770526903825,11.87923523,2082.1,2080.0,17.03413698]
[1770526903826,11.63890523,2081.2,2080.1,10.69722854]
[1770526904834,11.63890523,2081.2,2080.1,10.70187575]
[1770526909739,0.24034,2082.0,2080.2,6.11189123]
[1770526909740,11.63890523,2081.9,2080.2,6.11189123]
[1770526909938,11.63890523,2081.9,2080.3,10.69722854]
[1770526910443,11.63890523,2081.9,2080.3,10.93775854]
[1770526910637,11.63890523,2081.9,2080.5,10.69722854]
[1770526911041,11.63890523,2082.5,2080.7,10.93770854]
[1770526911343,11.63890523,2082.5,2080.9,10.69722854]
[1770526912638,11.63890523,2082.5,2081.1,10.69722854]
[1770526914849,11.87918523,2082.5,2080.7,10.69722854]
[1770526916154,11.63890523,2082.3,2080.7,10.69722854]
[1770526917750,11.63890523,2081.8,2080.5,10.69722854]
[1770526918251,11.63890523,2081.8,2080.2,10.69722854]
[1770526919549,11.63890523,2081.5,2080.1,10.70187575]
[1770526922657,11.63890523,2081.1,2080.1,0.00464721]
[1770526922949,11.64416362,2081.1,2080.1,0.00464721]
[1770526923556,11.88460362,2081.1,2080.1,0.00464721]
[1770526924059,11.63890523,2080.9,2080.1,0.00464721]
[1770526924445,11.63890523,2080.9,2080.1,10.70187575]
[1770526926158,10.52737734,2081.1,2080.1,10.70187575]
[1770526927953,0.00525839,2081.1,2080.1,10.70187575]
[1770526929355,0.00525839,2081.1,2080.3,11.18374256]
[1770526930659,5.71443464,2082.0,2080.3,11.18374256]
[1770526930859,10.52211895,2081.9,2080.5,11.18374256]
[1770526931251,10.52211895,2081.9,2080.7,11.18374256]
[1770526931753,10.52795048,2081.9,2080.7,11.18374256]
[1770526932264,0.00583153,2081.9,2080.9,11.18374256]
[1770526932461,10.52795048,2081.9,2080.9,10.22002648]
[1770526933266,0.00583153,2081.9,2080.9,10.22002648]
[1770526933665,0.00583153,2081.9,2081.1,11.05594838]
[1770526933866,11.56411147,2082.7,2081.1,11.05594838]
[1770526934778,11.56842588,2082.7,2081.1,11.05594838]
[1770526935970,11.56842588,2082.7,2080.9,4.46184917]
[1770526935971,11.56842588,2082.7,2081.3,11.05594838]
[1770526938064,11.80868588,2082.7,2081.3,11.05594838]
[1770526939871,11.56842588,2082.7,2081.3,11.05594838]
[1770526947275,11.56842588,2082.7,2081.5,11.05594838]
[1770526951280,11.56842588,2082.7,2081.7,11.05594838]
[1770526951481,11.56842588,2082.7,2081.7,11.06030674]
[1770526958381,11.56842588,2082.7,2081.8,10.64614009]
[1770526959482,11.56842588,2082.7,2081.7,2.82476543]
[1770526959483,11.56842588,2082.7,2081.7,10.65049845]
[1770526961388,11.56842588,2082.7,2081.8,10.64614009]
[1770526967593,11.56842588,2082.7,2081.9,10.64614009]
[1770526970395,11.56842588,2082.7,2082.0,10.64614009]
[1770526971497,11.56842588,2082.7,2081.7,13.47090552]
[1770526972291,10.88957669,2082.6,2081.7,13.47090552]
[1770526972797,10.88957669,2082.6,2081.7,0.00435836]
[1770526972798,16.60401133,2082.5,2081.7,0.00435836]
[1770526973098,10.88957669,2082.4,2081.7,0.00435836]
[1770526974895,10.88957669,2082.4,2081.7,10.65049845]
[1770526977703,10.88957669,2082.4,2081.7,0.00435836]
[1770526981301,10.88957669,2082.4,2081.3,13.46654716]
[1770526981501,10.88957669,2082.4,2081.2,10.64614009]
[1770526982400,10.88957669,2082.4,2081.2,10.65062664]
[1770526982601,11.12987669,2082.4,2081.2,10.65062664]
[1770526982795,11.12987669,2082.4,2081.2,0.00448655]
[1770526982796,16.84431133,2082.4,2081.2,0.00448655]
[1770526982994,10.88957669,2082.3,2081.2,10.65062664]
[1770526991006,10.88957669,2082.3,2081.3,10.85762828]
[1770526991409,10.88957669,2082.3,2081.6,10.85762828]
[1770526992303,11.53443787,2082.5,2081.6,10.85762828]
[1770526994306,11.03423447,2082.7,2081.8,10.54742484]
[1770526994506,11.03423447,2082.7,2081.9,10.54742484]
[1770526998511,11.03423447,2082.7,2081.8,10.54742484]
[1770526998710,11.03423447,2082.7,2081.5,2.82040707]
[1770526999005,11.02992006,2082.6,2081.6,10.54742484]
[1770527003318,11.02992006,2082.6,2081.7,10.54742484]
[1770527003707,0.00431441,2082.7,2081.7,10.54742484]
[1770527003913,0.00431441,2082.7,2082.0,10.54742484]
[1770527004115,0.00431441,2082.7,2082.1,10.54742484]
[1770527012728,11.03423447,2082.7,2082.1,10.54742484]
[1770527019935,11.03423447,2082.7,2081.9,2.82040707]
[1770527020133,11.03423447,2082.7,2081.3,8.62319053]
[1770527020134,11.46232489,2082.6,2081.4,10.58784218]
[1770527020328,5.71443464,2082.6,2081.4,10.58784218]
[1770527020535,5.71443464,2082.6,2081.3,2.82040707]
[1770527020536,11.46232489,2082.5,2081.3,2.82040707]
[1770527020729,11.46232489,2082.4,2081.3,4.43493883]
[1770527020933,11.46232489,2082.4,2081.2,13.4127358]
[1770527023635,11.46232489,2082.4,2081.3,10.58784218]
[1770527027234,11.46232489,2082.4,2081.2,10.59232873]
[1770527029143,11.46232489,2082.4,2081.3,10.58784218]
[1770527038446,11.46232489,2082.4,2081.5,10.58784218]
[1770527044548,11.46232489,2082.4,2081.4,10.58784218]
[1770527047348,11.46232489,2082.4,2081.5,11.48579712]
[1770527048447,11.08105992,2082.3,2081.5,11.48579712]
[1770527049354,11.08105992,2082.3,2081.5,14.30620419]
[1770527049753,11.08105992,2082.3,2081.5,11.48579712]
[1770527050256,11.08105992,2082.3,2081.5,14.30620419]
[1770527056754,11.08105992,2082.3,2081.5,2.82040707]
[1770527056960,11.10865794,2082.0,2081.2,11.28847029]
[1770527065462,12.0325527,2082.0,2081.2,11.28847029]
[1770527066368,11.10865794,2082.2,2081.4,11.28398374]
[1770527066559,11.10865794,2082.2,2081.6,11.28398374]
[1770527066967,12.0325527,2082.4,2081.6,11.28398374]
[1770527068566,0.92389476,2082.4,2081.6,11.28398374]
[1770527069964,12.0325527,2082.4,2081.6,11.28398374]
[1770527075070,11.10865794,2082.4,2081.6,11.28398374]
[1770527087774,0.00431441,2082.7,2081.8,10.61078787]
[1770527088079,10.48177354,2082.6,2081.8,10.61078787]
[1770527088875,10.48608795,2082.7,2081.8,10.61078787]
[1770527089078,10.48608795,2082.7,2082.0,10.61078787]
[1770527093393,10.48177354,2082.5,2081.8,14.83217704]
[1770527093594,9.70085265,2082.5,2081.9,4.34632289]
[1770527093890,9.70085265,2082.5,2081.9,14.95711076]
[1770527094094,9.70085265,2082.5,2081.9,10.61078787]
[1770527106103,10.84335427,2082.6,2081.9,10.61078787]
[1770527108599,10.84335427,2082.6,2082.0,4.35252899]
[1770527108799,10.84335427,2082.6,2082.1,10.50630214]
[1770527110405,10.84766868,2082.7,2082.1,10.50630214]
[1770527111008,10.84766868,2082.7,2082.2,14.86717172]
[1770527111209,10.84766868,2082.7,2082.3,10.50630214]
[1770527116907,10.84766868,2082.7,2082.2,11.2587913]
[1770527117108,10.84766868,2082.7,2082.2,11.56459254]
[1770527120512,10.06679917,2082.7,2082.2,11.56459254]
[1770527121414,10.07037808,2082.7,2082.2,11.56459254]
[1770527130520,9.28951624,2082.7,2082.2,11.56459254]
[1770527132117,9.28951624,2082.7,2082.3,11.2587913]
[1770527133316,9.28951624,2082.7,2082.2,2.85969607]
[1770527133618,9.28951624,2082.7,2081.9,14.11848737]
[1770527133817,9.28951624,2082.7,2082.0,4.36221222]
[1770527135321,9.28951624,2082.7,2081.9,14.11848737]
[1770527137621,9.28951624,2082.7,2081.9,14.43147199]
[1770527139120,9.28951624,2082.7,2082.0,10.90747119]
[1770527144029,9.28951624,2082.7,2081.9,3.17268069]
[1770527144325,9.28951624,2082.7,2081.9,7.52203997]
[1770527144625,9.28951624,2082.7,2081.9,18.42951116]
[1770527144924,9.28951624,2082.7,2081.9,14.08015188]
[1770527149424,9.28951624,2082.7,2081.9,13.76716726]
[1770527149730,10.46136899,2082.5,2081.6,14.07074148]
[1770527150126,10.46136899,2082.5,2081.6,13.76716726]
[1770527153131,10.46136899,2082.5,2081.6,10.90747119]
[1770527153632,10.46136899,2082.5,2081.7,15.24584529]
[1770527153826,10.46136899,2082.5,2081.8,10.90747119]
[1770527157032,10.46136899,2082.5,2081.9,10.90747119]
[1770527157230,0.00357891,2082.7,2081.9,10.90747119]
[1770527157231,10.46136899,2082.6,2081.9,10.90747119]
[1770527160733,10.46136899,2082.6,2082.0,10.90747119]
[1770527160935,0.00357891,2082.7,2082.0,10.90747119]
[1770527161127,0.00357891,2082.7,2082.0,13.76716726]
[1770527161328,0.00357891,2082.7,2082.1,10.90747119]
[1770527161936,10.4649479,2082.7,2082.0,2.85969607]
[1770527162129,10.4649479,2082.7,2082.0,18.11441398]
[1770527162329,10.4649479,2082.7,2082.0,13.76716726]
[1770527163021,10.4649479,2082.7,2082.0,10.90747119]
[1770527166538,10.4649479,2082.7,2082.0,14.80147119]
[1770527170641,10.4649479,2082.7,2082.1,10.7524623]
[1770527172142,0.00357891,2082.7,2082.1,10.7524623]
[1770527172342,0.00357891,2082.7,2082.1,14.6464623]
[1770527172533,0.00357891,2082.7,2082.2,10.7524623]
[1770527172942,10.15957771,2082.7,2082.2,10.7524623]
[1770527174742,10.15957771,2082.7,2082.1,3.894]
[1770527178238,10.15957771,2082.7,2082.0,10.52316206]
[1770527182439,10.15957771,2082.7,2082.1,10.52316206]
[1770527182440,0.00357891,2082.7,2082.1,10.52316206]
[1770527182642,0.00357891,2082.7,2082.2,10.52316206]
[1770527184835,10.1559988,2082.8,2082.2,10.52316206]
[1770527185940,10.16041911,2082.8,2082.2,10.52316206]
[1770527192850,10.16041911,2082.8,2082.3,10.52316206]
[1770527194150,0.00442031,2082.8,2082.3,10.52316206]
[1770527197652,5.71443464,2083.1,2082.5,10.27150595]
[1770527197847,10.36413273,2083.4,2083.0,0.9230641]
[1770527198047,10.36413273,2083.4,2082.9,10.27150595]
[1770527198648,0.00453146,2083.4,2083.1,10.27150595]
[1770527200247,10.36866419,2083.4,2083.0,11.19457005]
[1770527200453,10.36866419,2083.4,2082.9,0.00467026]
[1770527203750,10.36866419,2083.4,2082.9,10.27617621]
[1770527206853,10.36866419,2083.4,2082.9,0.00467026]
[1770527207257,10.36866419,2083.4,2082.9,10.27617621]
[1770527210655,10.36866419,2083.4,2082.9,0.00467026]
[1770527210861,10.36413273,2083.1,2082.6,10.27150595]
[1770527211861,10.36413273,2083.1,2082.6,0.00409468]
[1770527212861,10.36413273,2083.1,2082.4,10.27150595]
[1770527213062,10.36413273,2083.1,2082.4,14.16550595]
[1770527213764,10.36413273,2083.1,2082.4,14.16998024]
[1770527214868,10.36413273,2083.1,2082.5,10.27150595]
[1770527216463,10.36413273,2083.1,2082.6,10.27150595]
[1770527222155,10.36413273,2083.1,2082.7,10.27150595]
[1770527222861,0.92759556,2083.4,2082.7,10.27150595]
[1770527222862,10.36413273,2083.3,2082.7,10.27150595]
[1770527223260,10.36413273,2083.3,2082.8,10.27150595]
[1770527224062,10.36866419,2083.4,2082.8,10.27150595]
[1770527224268,10.36866419,2083.4,2082.8,11.19457005]
[1770527225261,0.9230641,2083.9,2082.9,10.27150595]
[1770527225262,10.36413273,2083.6,2082.9,10.27150595]